bitfinex-derivatives/quotes_BTCF0:USTF0_20250325
["timestamp","ask_amount","ask_price","bid_price","bid_amount"]
[1742885333339,0.1622582,86601.0,86600.0,0.3133595]
[1742885333534,0.1632582,86601.0,86600.0,0.3073595]
[1742885334338,0.1632582,86601.0,86600.0,0.32279901]
[1742885334729,0.1632582,86601.0,86600.0,0.3073595]
[1742885335241,0.1632582,86601.0,86600.0,0.3227648]
[1742885339143,0.1632582,86601.0,86595.0,0.3608]
[1742885339144,0.0577317,86597.0,86580.0,0.0577427]
[1742885339338,0.0577317,86597.0,86584.0,0.00092]
[1742885339339,0.1154795,86585.0,86584.0,0.00092]
[1742885339538,0.1154822,86584.0,86583.0,0.1154816]
[1742885339839,0.2080022,86584.0,86583.0,0.1161616]
[1742885340248,0.5688022,86584.0,86583.0,0.1161616]
[1742885340442,0.5688022,86584.0,86583.0,0.1161622]
[1742885340642,0.09252,86584.0,86583.0,0.1161622]
[1742885340830,0.20584,86584.0,86583.0,0.1408005]
[1742885341030,0.09252,86584.0,86583.0,0.1876005]
[1742885341234,0.3608,86591.0,86589.0,0.1154742]
[1742885341434,0.4771916,86591.0,86590.0,0.1633729]
[1742885341633,0.4771916,86591.0,86590.0,0.1642929]
[1742885341846,0.36172,86591.0,86590.0,0.1642929]
[1742885342533,0.45252,86591.0,86590.0,0.2100929]
[1742885343035,0.45252,86591.0,86590.0,0.5208929]
[1742885343036,0.09172,86591.0,86590.0,0.5208929]
[1742885343236,0.17127478,86602.0,86601.0,0.1154582]
[1742885343535,0.28765168,86602.0,86601.0,0.1154582]
[1742885343741,0.28765168,86602.0,86601.0,0.1161382]
[1742885344339,0.17219478,86602.0,86601.0,0.1161382]
[1742885344546,0.17319478,86602.0,86601.0,0.1161382]
[1742885344846,0.28865168,86602.0,86601.0,0.1161382]
[1742885345051,0.28965168,86602.0,86601.0,0.1635382]
[1742885345241,0.17419478,86602.0,86601.0,0.17883075]
[1742885345438,0.00292,86602.0,86601.0,0.17883075]
[1742885345835,0.1183769,86602.0,86601.0,0.1635382]
[1742885346546,0.1667769,86602.0,86601.0,0.1635382]
[1742885347251,0.05132,86602.0,86601.0,0.1635382]
[1742885347548,0.1667769,86602.0,86601.0,0.1635382]
[1742885347754,0.2124769,86602.0,86601.0,0.1635382]
[1742885348749,0.09702,86602.0,86601.0,0.1635382]
[1742885350050,0.2124769,86602.0,86601.0,0.1635382]
[1742885350648,0.09702,86602.0,86601.0,0.1635382]
[1742885350839,0.0961,86602.0,86601.0,0.1635382]
[1742885351045,0.09702,86602.0,86601.0,0.1635382]
[1742885351643,0.04862,86602.0,86601.0,0.1635382]
[1742885353247,0.1640769,86602.0,86601.0,0.1635382]
[1742885353645,0.04862,86602.0,86601.0,0.1635382]
[1742885354246,0.6391569,86602.0,86601.0,0.00068]
[1742885354452,0.1154675,86594.0,86591.0,0.0577353]
[1742885354748,0.11642751,86594.0,86593.0,0.11564205]
[1742885354948,0.11642751,86594.0,86593.0,0.11624205]
[1742885355156,0.11642751,86594.0,86593.0,0.13146832]
[1742885355361,0.20982751,86594.0,86593.0,0.13146832]
[1742885355648,0.20982751,86594.0,86593.0,0.14765372]
[1742885355856,0.20982751,86594.0,86593.0,0.19505372]
[1742885356241,0.09436001,86594.0,86593.0,0.19505372]
[1742885356848,0.09436001,86594.0,86593.0,0.19605372]
[1742885357141,0.00096001,86594.0,86593.0,0.19605372]
[1742885357346,0.1154641,86597.0,86596.0,0.0577319]
[1742885357546,0.1154641,86597.0,86596.0,0.1678173]
[1742885357745,0.1163841,86597.0,86596.0,0.1684973]
[1742885358146,0.1163841,86597.0,86596.0,0.16850471]
[1742885358751,0.1163841,86597.0,86596.0,0.00068]
[1742885358945,0.1154675,86595.0,86594.0,0.1154673]
[1742885359150,0.1163875,86595.0,86594.0,0.1160673]
[1742885359446,0.2093875,86595.0,86594.0,0.1160673]
[1742885360046,0.2093875,86595.0,86594.0,0.0006]
[1742885360447,0.5701875,86595.0,86594.0,0.0006]
[1742885360652,0.1154675,86594.0,86593.0,0.00017315]
[1742885360848,0.00092,86594.0,86572.0,0.36088]
[1742885361051,0.0577392,86586.0,86585.0,0.1154782]
[1742885361255,0.1733392,86586.0,86585.0,0.1161582]
[1742885361446,0.2199592,86586.0,86585.0,0.1161582]
[1742885361960,0.2199592,86586.0,86585.0,0.1640582]
[1742885362349,0.5807592,86586.0,86585.0,0.1640582]
[1742885363253,0.5807592,86586.0,86585.0,0.1670582]
[1742885363561,0.5807592,86586.0,86585.0,0.1700582]
[1742885364463,0.6369093,86586.0,86585.0,0.1700582]
[1742885365156,0.5223093,86586.0,86585.0,0.1700582]
[1742885366163,0.1037701,86586.0,86585.0,0.1700582]
[1742885366359,0.0561501,86586.0,86585.0,0.1700582]
[1742885366654,0.0453,86594.0,86593.0,0.1154689]
[1742885366856,0.0453,86594.0,86593.0,0.1161489]
[1742885367059,0.1617675,86594.0,86593.0,0.1161489]
[1742885368254,0.1617675,86594.0,86593.0,0.1171489]
[1742885368455,0.0463,86594.0,86593.0,0.1171489]
[1742885368655,0.001,86594.0,86593.0,0.4779489]
[1742885368852,0.0449,86600.0,86599.0,0.1154609]
[1742885369052,0.11562135,86610.0,86593.0,0.41118]
[1742885369252,0.11562135,86610.0,86609.0,0.1154475]
[1742885369462,0.11654135,86610.0,86609.0,0.1154475]
[1742885369663,0.11654135,86610.0,86609.0,0.1160475]
[1742885370278,0.20624135,86610.0,86609.0,0.1160475]
[1742885370960,0.20924135,86610.0,86609.0,0.1160475]
[1742885371757,0.21024135,86610.0,86609.0,0.1160475]
[1742885371964,0.09479315,86610.0,86609.0,0.1160475]
[1742885372267,0.21023935,86610.0,86609.0,0.1160475]
[1742885373263,0.37354191,86610.0,86609.0,0.0006]
[1742885373459,0.1154675,86594.0,86593.0,0.4185339]
[1742885373660,0.11654751,86594.0,86593.0,0.4191739]
[1742885374262,0.20914751,86594.0,86593.0,0.4191739]
[1742885374970,0.20914751,86594.0,86593.0,0.4201739]
[1742885376067,0.20914751,86594.0,86593.0,0.4211739]
[1742885377069,0.20914751,86594.0,86593.0,0.0603739]
[1742885377369,0.20914751,86594.0,86593.0,0.0597339]
[1742885377964,0.20914751,86594.0,86593.0,0.002]
[1742885379067,0.20914751,86594.0,86593.0,0.001]
[1742885379068,0.21014751,86594.0,86593.0,0.001]
[1742885379370,0.21014751,86594.0,86592.0,8e-05]
[1742885379371,0.1154689,86593.0,86592.0,8e-05]
[1742885379567,0.1154795,86586.0,86585.0,0.1154793]
[1742885379767,0.1154795,86586.0,86584.0,0.1154802]
[1742885379768,0.1154795,86585.0,86584.0,0.1154802]
[1742885380075,0.1649395,86585.0,86584.0,0.1161602]
[1742885380273,0.2101395,86585.0,86584.0,0.1161602]
[1742885380463,0.2101395,86585.0,86584.0,0.00068]
[1742885380665,0.2101395,86585.0,86584.0,0.1161609]
[1742885381467,0.2121395,86585.0,86584.0,0.1161609]
[1742885382777,0.2121395,86585.0,86584.0,0.00068]
[1742885383277,0.2131395,86585.0,86584.0,0.00068]
[1742885383468,0.1154902,86578.0,86577.0,0.1154893]
[1742885383668,0.11657021,86578.0,86577.0,0.1160893]
[1742885383873,0.21207021,86578.0,86577.0,0.1160893]
[1742885384370,0.21207021,86578.0,86577.0,0.1631893]
[1742885384771,0.21207021,86578.0,86577.0,0.0477]
[1742885385069,0.21307021,86578.0,86577.0,0.1631902]
[1742885385570,0.21407021,86578.0,86577.0,0.1631902]
[1742885386467,0.00308001,86578.0,86577.0,0.1631902]
[1742885386675,0.002,86578.0,86577.0,0.7539902]
[1742885386865,0.002,86578.0,86577.0,0.5239902]
[1742885387069,0.1174889,86578.0,86577.0,0.5239902]
[1742885387374,0.11856891,86578.0,86577.0,0.5239902]
[1742885387573,0.00308001,86578.0,86577.0,0.5239902]
[1742885388174,0.00208001,86578.0,86577.0,0.5239902]
[1742885388481,0.1154876,86579.0,86578.0,0.1154889]
[1742885388676,0.11656761,86579.0,86578.0,0.1160889]
[1742885388878,0.00108001,86579.0,86578.0,0.2102889]
[1742885389078,0.1154867,86580.0,86579.0,0.1732281]
[1742885389382,0.11656671,86580.0,86579.0,0.2680281]
[1742885389886,0.00108001,86580.0,86579.0,0.2680281]
[1742885391469,0.11656621,86580.0,86579.0,0.2680281]
[1742885391668,0.00108001,86580.0,86579.0,0.2680281]
[1742885391877,0.00208001,86580.0,86579.0,0.2680281]
[1742885392667,0.00308001,86580.0,86579.0,0.2680281]
[1742885394875,0.002,86580.0,86579.0,0.2680281]
[1742885395189,0.00308001,86580.0,86579.0,0.2680281]
[1742885395478,0.002,86580.0,86579.0,0.2680281]
[1742885395881,0.002,86580.0,86579.0,0.3816281]
[1742885396074,0.00208001,86580.0,86579.0,0.3816281]
[1742885396272,0.00108001,86580.0,86579.0,0.3816281]
[1742885396870,0.17226123,86584.0,86583.0,0.1154822]
[1742885397082,0.17226123,86584.0,86583.0,0.1160822]
[1742885397282,0.17334124,86584.0,86583.0,0.1160822]
[1742885397583,0.00017326,86586.0,86585.0,0.1154795]
[1742885397783,0.11641146,86586.0,86585.0,0.4770395]
[1742885398376,0.11641146,86586.0,86585.0,0.5705395]
[1742885399275,0.11841146,86586.0,86585.0,0.5705395]
[1742885400293,0.11941146,86586.0,86585.0,0.5705395]
[1742885404085,0.38233718,86586.0,86585.0,0.5705395]
[1742885404886,0.26685898,86586.0,86585.0,0.5705395]
[1742885405792,0.26585898,86586.0,86585.0,0.5705395]
[1742885405987,0.26685898,86586.0,86585.0,0.5705395]
[1742885406181,0.26685898,86586.0,86585.0,0.58537138]
[1742885406782,0.26685898,86586.0,86585.0,0.5853726]
[1742885408387,0.26685898,86586.0,86585.0,0.5705395]
[1742885408796,0.06008898,86586.0,86585.0,0.79882143]
[1742885409287,0.06008898,86586.0,86585.0,0.79882226]
[1742885409696,0.24195964,86598.0,86597.0,0.1154635]
[1742885409898,0.24259964,86598.0,86597.0,0.4769435]
[1742885410599,0.24259964,86598.0,86597.0,0.5697435]
[1742885411103,0.24259964,86598.0,86597.0,0.58453875]
[1742885411798,0.24559964,86598.0,86597.0,0.58453875]
[1742885412192,0.36106184,86598.0,86597.0,0.49173875]
[1742885412500,0.40946184,86598.0,86597.0,0.4769435]
[1742885412694,0.1675022,86598.0,86597.0,0.4769435]
[1742885414003,0.1675022,86598.0,86597.0,0.00068]
[1742885414199,0.1675022,86598.0,86597.0,0.1154635]
[1742885414503,0.1675022,86598.0,86597.0,0.1161435]
[1742885414504,0.06272901,86598.0,86597.0,0.1161435]
[1742885414703,0.22539121,86598.0,86597.0,0.2094435]
[1742885414903,0.22539121,86598.0,86597.0,0.1161435]
[1742885417596,0.22539121,86598.0,86597.0,0.1613435]
[1742885418002,0.10992901,86598.0,86597.0,0.1613435]
[1742885418204,0.09924,86598.0,86597.0,0.1613435]
[1742885418401,0.0986,86598.0,86597.0,0.2108435]
[1742885418602,0.05204,86598.0,86597.0,0.2108435]
[1742885418803,0.0514,86598.0,86597.0,0.2108435]
[1742885419001,0.05200001,86598.0,86597.0,0.2108435]
[1742885419202,0.1668622,86598.0,86597.0,0.2108435]
[1742885419606,0.0514,86598.0,86597.0,0.2108435]
[1742885419800,0.05208,86598.0,86597.0,0.2108435]
[1742885420000,0.1675422,86598.0,86597.0,0.2108435]
[1742885420199,0.1675422,86598.0,86597.0,0.2253461]
[1742885420604,0.05208,86598.0,86597.0,0.2253461]
[1742885420804,0.05789966,86606.0,86597.0,0.2253461]
[1742885420805,0.0481,86605.0,86604.0,0.1154542]
[1742885420997,0.00064,86605.0,86604.0,0.4768542]
[1742885421201,0.0481,86610.0,86609.0,0.1154475]
[1742885421394,0.0481,86610.0,86609.0,0.1164475]
[1742885421599,0.0491,86610.0,86609.0,0.3864475]
[1742885421800,0.1645462,86610.0,86609.0,0.1164475]
[1742885421999,0.2101462,86610.0,86609.0,0.1164475]
[1742885422695,0.2131462,86610.0,86609.0,0.1164475]
[1742885424403,0.0977,86610.0,86609.0,0.1164475]
[1742885424594,0.0521,86610.0,86609.0,0.1164475]
[1742885425404,0.0511,86610.0,86609.0,0.1164475]
[1742885425603,0.003,86610.0,86609.0,0.3764475]
[1742885425800,0.003,86610.0,86609.0,0.1164475]
[1742885426008,0.003,86610.0,86609.0,0.3864475]
[1742885426311,0.003,86610.0,86609.0,0.1164475]
[1742885429204,0.00404001,86610.0,86609.0,0.1164475]
[1742885430398,0.00404001,86610.0,86609.0,0.2332875]
[1742885431308,0.11948621,86610.0,86609.0,0.1164475]
[1742885432109,0.21848621,86610.0,86609.0,0.1164475]
[1742885434507,0.62848621,86610.0,86609.0,0.001]
[1742885435608,0.1154475,86609.0,86608.0,8e-05]
[1742885435806,0.11604751,86609.0,86608.0,0.00108]
[1742885436001,0.21564751,86609.0,86608.0,0.00108]
[1742885436911,0.21564751,86609.0,86608.0,8e-05]
[1742885437113,0.1154582,86601.0,86600.0,0.1154588]
[1742885437619,0.1164582,86601.0,86600.0,0.1164588]
[1742885437825,0.1154582,86601.0,86600.0,0.1154588]
[1742885438117,0.1154582,86601.0,86590.0,0.1154729]
[1742885438118,0.1154715,86591.0,86590.0,0.1154729]
[1742885438321,0.4762715,86591.0,86590.0,0.1154729]
[1742885438513,0.6223715,86591.0,86590.0,0.1154729]
[1742885439110,0.2615715,86591.0,86590.0,0.1154729]
[1742885439313,0.2615715,86591.0,86590.0,0.2108729]
[1742885439514,0.2129715,86591.0,86590.0,0.2108729]
[1742885439713,0.0975,86591.0,86590.0,0.2108729]
[1742885440319,0.2129715,86591.0,86590.0,0.2108729]
[1742885441413,0.1615675,86594.0,86593.0,0.1154689]
[1742885441613,0.1615675,86594.0,86593.0,0.2098689]
[1742885442710,0.16216751,86594.0,86593.0,0.2108689]
[1742885446521,0.04670001,86594.0,86593.0,0.2108689]
[1742885446717,0.16216751,86594.0,86593.0,0.2108689]
[1742885446918,0.04670001,86594.0,86593.0,0.2108689]
[1742885447223,0.16216751,86594.0,86593.0,0.2108689]
[1742885451411,0.04670001,86594.0,86593.0,0.2108689]
[1742885452925,0.16216751,86594.0,86593.0,0.2108689]
[1742885453115,0.20946751,86594.0,86593.0,0.2108689]
[1742885456130,0.20946751,86594.0,86593.0,0.1164689]
[1742885456316,0.20946751,86594.0,86593.0,0.1154689]
[1742885458029,0.20946751,86594.0,86593.0,0.1165489]
[1742885458532,0.20946751,86594.0,86593.0,0.1665489]
[1742885460627,0.26562114,86594.0,86593.0,0.2150489]
[1742885462029,0.26562114,86594.0,86593.0,0.1665489]
[1742885462631,0.27626236,86594.0,86593.0,0.1665489]
[1742885462830,0.26562114,86594.0,86593.0,0.1665489]
[1742885463031,0.26562114,86594.0,86593.0,0.2184489]
[1742885463729,0.15015364,86594.0,86593.0,0.2184489]
[1742885463927,0.10285364,86594.0,86593.0,0.2184489]
[1742885464127,0.05675364,86594.0,86593.0,0.2184489]
[1742885468834,0.00060001,86594.0,86593.0,0.2184489]
[1742885469234,0.00017326,86599.0,86598.0,0.1154622]
[1742885469428,0.0951,86611.0,86602.0,0.1154569]
[1742885469622,0.0951,86611.0,86602.0,0.4762569]
[1742885470131,0.20761928,86603.0,86602.0,0.4774569]
[1742885470334,0.0004,86616.0,86610.0,0.1154462]
[1742885470534,0.0479,86616.0,86615.0,0.4762395]
[1742885470731,0.1633382,86616.0,86615.0,0.4762395]
[1742885471037,0.2152382,86616.0,86615.0,0.4762395]
[1742885471526,0.0004,86616.0,86615.0,0.58803442]
[1742885472528,0.0004,86616.0,86615.0,0.84803442]
[1742885472726,0.00017326,86622.0,86616.0,0.1154382]
[1742885472936,0.00017326,86622.0,86616.0,0.12407151]
[1742885473127,0.00017326,86622.0,86616.0,0.21977151]
[1742885473530,0.0509,86621.0,86616.0,0.21977151]
[1742885473731,0.1021,86621.0,86620.0,0.1154329]
[1742885474531,0.1021,86621.0,86620.0,0.1635329]
[1742885475128,0.1021,86621.0,86620.0,0.1650929]
[1742885477433,0.1021,86621.0,86606.0,0.3608]
[1742885477434,0.4629,86621.0,86606.0,0.3608]
[1742885477640,0.2224496,86620.0,86619.0,8e-05]
[1742885477936,0.23364686,86620.0,86619.0,8e-05]
[1742885478144,0.74184686,86620.0,86619.0,8e-05]
[1742885478638,0.74179107,86620.0,86619.0,8e-05]
[1742885478841,0.74179116,86620.0,86619.0,8e-05]
[1742885480643,0.74179116,86620.0,86607.0,0.00017326]
[1742885480644,0.1154489,86608.0,86607.0,0.00017326]
[1742885481028,0.11656891,86608.0,86607.0,0.00129326]
[1742885481233,0.11656891,86608.0,86607.0,0.00017326]
[1742885481444,0.21426891,86608.0,86607.0,0.00017326]
[1742885484035,0.0577283,86603.0,86595.0,0.01390546]
[1742885484346,0.1154649,86596.0,86595.0,0.01390546]
[1742885484535,0.11606491,86596.0,86595.0,0.1154662]
[1742885484735,0.11606491,86596.0,86595.0,0.1165862]
[1742885484939,0.21666491,86596.0,86595.0,0.1165862]
[1742885485338,0.21666491,86596.0,86595.0,0.1692862]
[1742885485537,0.21666491,86596.0,86595.0,0.2219862]
[1742885486544,0.21666491,86596.0,86595.0,0.00212]
[1742885486744,0.21666491,86596.0,86595.0,0.001]
[1742885487046,0.21666491,86596.0,86595.0,0.1164662]
[1742885487246,0.21666491,86596.0,86595.0,0.1175862]
[1742885487842,0.21666491,86596.0,86595.0,0.1165862]
[1742885488249,0.21666491,86596.0,86595.0,0.1676862]
[1742885490746,0.21666491,86596.0,86595.0,0.1165862]
[1742885491135,0.21666491,86596.0,86595.0,0.00112]
[1742885492042,0.21666491,86596.0,86595.0,0.04992]
[1742885492843,0.21666491,86596.0,86595.0,0.1653862]
[1742885493742,0.21666491,86596.0,86595.0,0.1165862]
[1742885493950,0.21666491,86596.0,86595.0,0.00112]
[1742885494144,0.1154662,86595.0,86594.0,0.1155468]
[1742885494447,0.11650621,86595.0,86594.0,0.1165868]
[1742885494645,0.21750621,86595.0,86594.0,0.00112]
[1742885495039,0.21750621,86595.0,86594.0,8e-05]
[1742885495549,0.1154689,86593.0,86592.0,0.1154702]
[1742885495748,0.11650891,86593.0,86592.0,0.1165902]
[1742885495934,0.11650891,86593.0,86592.0,0.00112]
[1742885496445,0.1154702,86592.0,86591.0,0.00046194]
[1742885496648,0.21747021,86592.0,86591.0,0.00046194]
[1742885497043,0.33255021,86592.0,86591.0,0.00046194]
[1742885497649,0.33255021,86592.0,86591.0,0.00150194]
[1742885497836,0.33255021,86592.0,86591.0,0.00046194]
[1742885498042,0.33255021,86592.0,86591.0,0.00158194]
[1742885498535,0.33255021,86592.0,86591.0,0.05368194]
[1742885498753,0.33251021,86592.0,86591.0,0.22275344]
[1742885499045,0.00060001,86592.0,86591.0,0.27615344]
[1742885499851,0.11607021,86592.0,86591.0,0.27615344]
[1742885500352,0.00060001,86592.0,86591.0,0.27615344]
[1742885500552,0.11607021,86592.0,86591.0,0.27615344]
[1742885500751,0.00060001,86592.0,86591.0,0.27615344]
[1742885502653,0.41,86596.0,86595.0,0.1154662]
[1742885502846,0.41132,86596.0,86595.0,0.1167862]
[1742885503553,0.41132,86596.0,86595.0,0.1672862]
[1742885504453,0.00132,86596.0,86595.0,0.1672862]
[1742885505053,0.1167849,86596.0,86595.0,0.05182]
[1742885505851,0.2202849,86596.0,86595.0,0.1672862]
[1742885507254,0.1701849,86596.0,86595.0,0.1672862]
[1742885507753,0.00132,86596.0,86595.0,0.1672862]
[1742885507953,0.1167849,86596.0,86595.0,0.18204918]
[1742885508459,0.00132,86596.0,86595.0,0.18204918]
[1742885508657,0.00132,86596.0,86595.0,0.1672862]
[1742885509660,0.00132,86596.0,86595.0,0.18207272]
[1742885510857,0.00132,86596.0,86595.0,0.18210715]
[1742885511856,0.00132,86596.0,86595.0,0.29670715]
[1742885512056,0.00132,86596.0,86595.0,0.2818862]
[1742885512253,0.2292824,86602.0,86601.0,0.1154582]
[1742885512254,0.1715539,86602.0,86601.0,0.1154582]
[1742885512451,0.00017326,86604.0,86603.0,0.1154555]
[1742885512662,0.00017326,86604.0,86603.0,0.13195737]
[1742885512865,0.00017326,86604.0,86603.0,0.1171355]
[1742885513057,0.00017326,86604.0,86603.0,0.2194355]
[1742885513567,0.1681405,86615.0,86610.0,0.1154462]
[1742885513864,0.1681405,86615.0,86610.0,0.4778862]
[1742885514265,0.1154436,86612.0,86610.0,0.4778862]
[1742885514566,0.3214087,86611.0,86610.0,0.5791862]
[1742885514751,0.4763087,86611.0,86610.0,0.5791862]
[1742885515357,0.4763087,86611.0,86610.0,0.59269158]
[1742885515557,0.4232087,86611.0,86610.0,0.59269158]
[1742885515770,0.1018,86611.0,86610.0,0.59269158]
[1742885516864,0.2172449,86611.0,86610.0,0.59269158]
[1742885517065,0.2172449,86611.0,86610.0,0.49139158]
[1742885517367,0.2172449,86611.0,86610.0,0.4778862]
[1742885519463,0.1018,86611.0,86610.0,0.4778862]
[1742885519970,0.1018,86611.0,86610.0,0.5272862]
[1742885520167,0.0487,86611.0,86610.0,0.5272862]
[1742885520381,0.13763389,86612.0,86611.0,0.1154449]
[1742885520671,0.08329449,86612.0,86611.0,0.23188307]
[1742885520862,0.0527,86617.0,86616.0,0.1154382]
[1742885521169,0.0527,86617.0,86616.0,0.13215637]
[1742885521360,0.65195964,86640.0,86628.0,0.057711]
[1742885521559,0.1158182,86632.0,86631.0,0.1154182]
[1742885521760,0.1158182,86632.0,86631.0,0.1170582]
[1742885522569,0.2196182,86632.0,86631.0,0.1170582]
[1742885522767,0.2196182,86632.0,86631.0,0.00164]
[1742885523069,0.1154249,86626.0,86625.0,0.1154254]
[1742885523263,0.1154249,86626.0,86625.0,0.1170654]
[1742885523863,0.2204249,86626.0,86625.0,0.1170654]
[1742885529374,0.0577171,86619.0,86613.0,0.1154416]
[1742885529572,0.515,86626.0,86611.0,0.1154444]
[1742885529573,0.1154462,86612.0,86611.0,0.1154444]
[1742885529772,0.1154462,86612.0,86611.0,0.1165644]
[1742885529972,0.21986621,86612.0,86611.0,0.1165644]
[1742885530177,0.21986621,86612.0,86606.0,0.0487]
[1742885530178,0.0577264,86605.0,86585.0,0.36088]
[1742885530378,0.1154609,86599.0,86598.0,0.00088]
[1742885530579,0.1163009,86599.0,86598.0,0.1163422]
[1742885531371,0.2204009,86599.0,86598.0,0.1163422]
[1742885532581,0.2204009,86599.0,86598.0,0.00088]
[1742885532770,0.2204009,86599.0,86591.0,0.00046194]
[1742885532771,0.1154702,86592.0,86591.0,0.00046194]
[1742885533079,0.1162702,86592.0,86591.0,0.11673334]
[1742885534580,0.1162702,86592.0,86591.0,0.22063334]
[1742885538380,0.0008,86592.0,86591.0,0.22063334]
[1742885538581,0.0008,86592.0,86591.0,0.27053334]
[1742885539073,0.2166702,86592.0,86591.0,0.27053334]
[1742885543190,0.1665702,86592.0,86591.0,0.27053334]
[1742885544783,0.2171702,86592.0,86591.0,0.27053334]
[1742885548796,0.2171702,86592.0,86591.0,0.22063334]
[1742885555394,0.0577264,86605.0,86599.0,0.1154609]
[1742885555592,0.16997266,86600.0,86599.0,0.4773009]
[1742885557301,0.16997266,86600.0,86599.0,0.49078722]
[1742885558200,0.16997266,86600.0,86599.0,0.50566729]
[1742885564300,0.0577229,86611.0,86607.0,0.1154502]
[1742885564499,0.41136,86608.0,86607.0,0.49269261]
[1742885565602,0.58310125,86608.0,86607.0,0.49269261]
[1742885566103,0.69140125,86608.0,86607.0,0.64899261]
[1742885566296,0.28140125,86608.0,86607.0,0.64899261]
[1742885566707,0.22740125,86608.0,86607.0,0.64899261]
[1742885567796,0.27940125,86608.0,86607.0,0.64899261]
[1742885568193,0.27940125,86608.0,86607.0,0.28819261]
[1742885568398,0.27940125,86608.0,86607.0,0.64899261]
[1742885568598,0.10766,86608.0,86607.0,0.64899261]
[1742885569403,0.00136,86608.0,86607.0,0.64900036]
[1742885569707,0.00017315,86616.0,86615.0,0.1154395]
[1742885570007,0.00017315,86616.0,86615.0,0.4779995]
[1742885570606,0.00017315,86616.0,86615.0,0.5850995]
[1742885571708,0.00017315,86616.0,86615.0,0.60007414]
[1742885571906,0.04987315,86616.0,86615.0,0.60007414]
[1742885572102,0.04987315,86616.0,86615.0,0.5850995]
[1742885573899,0.00017315,86616.0,86615.0,0.5850995]
[1742885574901,0.00017315,86616.0,86615.0,0.5999666]
[1742885575206,0.00017315,86616.0,86615.0,0.59991105]
[1742885576811,0.00017315,86616.0,86615.0,0.5850995]
[1742885577910,0.11561135,86616.0,86615.0,0.5850995]
[1742885579903,0.00017315,86616.0,86615.0,0.5850995]
[1742885580114,0.11561135,86616.0,86615.0,0.5850995]
[1742885580430,0.00017315,86616.0,86615.0,0.5850995]
[1742885581117,0.0515,86627.0,86625.0,0.1154249]
[1742885581311,0.0515,86627.0,86626.0,0.1028]
[1742885581512,0.0515,86627.0,86626.0,0.10456]
[1742885582317,0.1669249,86627.0,86626.0,0.2199849]
[1742885582511,0.33866615,86627.0,86626.0,0.2199849]
[1742885582703,0.33866615,86627.0,86626.0,0.1686849]
[1742885583106,0.33866615,86627.0,86626.0,0.1171849]
[1742885585014,0.39156615,86627.0,86626.0,0.1171849]
[1742885585513,0.2198249,86627.0,86626.0,0.1171849]
[1742885591824,0.2198249,86627.0,86626.0,0.1701849]
[1742885594227,0.2198249,86627.0,86626.0,0.05476]
[1742885594427,0.2198249,86627.0,86626.0,0.1701849]
[1742885596031,0.27595911,86627.0,86626.0,0.1701849]
[1742885596330,0.1154395,86615.0,86614.0,8e-05]
[1742885596523,0.1154529,86605.0,86604.0,0.32302559]
[1742885596723,0.1154529,86605.0,86604.0,0.20889139]
[1742885596932,0.1167729,86605.0,86604.0,0.20889139]
[1742885597317,0.2244729,86605.0,86604.0,0.20889139]
[1742885597725,0.2244729,86605.0,86604.0,0.32434559]
[1742885598031,0.2244729,86605.0,86604.0,0.20889139]
[1742885601435,0.28060711,86605.0,86604.0,0.00132]
[1742885601619,0.28060711,86605.0,86604.0,0.1024]
[1742885601825,0.28060711,86605.0,86604.0,0.10368]
[1742885602226,0.28060711,86605.0,86604.0,0.00128]
[1742885602425,0.1154542,86604.0,86603.0,8e-05]
[1742885602627,0.11605421,86604.0,86603.0,8e-05]
[1742885602941,0.21775421,86604.0,86603.0,8e-05]
[1742885603335,0.33423421,86604.0,86603.0,8e-05]
[1742885604632,0.33423421,86604.0,86603.0,0.00132]
[1742885605130,0.39036842,86604.0,86603.0,0.00132]
[1742885605335,0.44546842,86604.0,86603.0,0.00132]
[1742885605734,0.27388842,86604.0,86603.0,0.05382]
[1742885605930,0.27388842,86604.0,86603.0,0.10832]
[1742885606528,0.10683422,86604.0,86603.0,0.2237755]
[1742885606722,0.05673422,86604.0,86603.0,0.4837755]
[1742885606934,0.05613421,86604.0,86603.0,0.2237755]
[1742885607134,0.05745421,86604.0,86603.0,0.4637755]
[1742885607335,0.05745421,86604.0,86603.0,0.23938819]
[1742885607937,0.2060895,86606.0,86605.0,0.1154529]
[1742885608233,0.00017315,86613.0,86605.0,0.1154529]
[1742885608234,0.13753098,86609.0,86608.0,0.1154489]
[1742885608432,0.13753098,86609.0,86608.0,0.13282099]
[1742885608630,0.13753098,86609.0,86608.0,0.14753448]
[1742885608830,0.13753098,86609.0,86608.0,0.25423448]
[1742885609232,0.13753098,86609.0,86608.0,0.37075448]
[1742885610239,0.13753098,86609.0,86608.0,0.35604099]
[1742885610447,0.25297848,86609.0,86608.0,0.35604099]
[1742885611542,0.1704475,86609.0,86608.0,0.35604099]
[1742885612937,0.1704475,86609.0,86608.0,0.3403889]
[1742885613133,0.1154475,86609.0,86608.0,0.35587753]
[1742885613846,0.1154475,86609.0,86608.0,0.3403889]
[1742885614330,0.1154475,86609.0,86608.0,0.10842]
[1742885614537,0.1154475,86609.0,86608.0,0.00172]
[1742885614739,0.1154622,86598.0,86597.0,0.2249635]
[1742885614938,0.1154622,86598.0,86597.0,0.2266835]
[1742885615138,0.1154622,86598.0,86597.0,0.11122]
[1742885615630,0.2194622,86598.0,86597.0,0.11122]
[1742885615835,0.2194622,86598.0,86597.0,0.2266835]
[1742885616346,0.2194622,86598.0,86597.0,0.11122]
[1742885617947,0.1154635,86597.0,86596.0,0.00025315]
[1742885618342,0.2191635,86597.0,86596.0,0.00025315]
[1742885618547,0.2191635,86597.0,86596.0,0.00197315]
[1742885619235,0.5799635,86597.0,86596.0,0.00189315]
[1742885619434,0.1154702,86592.0,86591.0,0.00046194]
[1742885619635,0.11659021,86592.0,86591.0,0.00158194]
[1742885620243,0.10662001,86592.0,86591.0,0.22275344]
[1742885620443,0.00112001,86592.0,86591.0,0.22275344]
[1742885621041,0.00112001,86592.0,86591.0,0.22575344]
[1742885622338,0.11659021,86592.0,86591.0,0.24048618]
[1742885623536,0.00112001,86592.0,86591.0,0.24048618]
[1742885624037,0.1375849,86600.0,86597.0,0.1154635]
[1742885624038,0.0577317,86598.0,86597.0,0.1154635]
[1742885624237,0.13870491,86600.0,86599.0,0.1154609]
[1742885624446,0.25536442,86600.0,86599.0,0.1165809]
[1742885624635,0.11665951,86600.0,86599.0,0.1165809]
[1742885624836,0.11665951,86600.0,86599.0,0.2231809]
[1742885626039,0.11665951,86600.0,86599.0,0.23884254]
[1742885627448,0.00120001,86600.0,86599.0,0.23884254]
[1742885627839,0.1375849,86602.0,86601.0,0.1154582]
[1742885628040,0.13870491,86602.0,86601.0,0.42223984]
[1742885628247,0.13870491,86602.0,86601.0,0.13223984]
[1742885628546,0.13870491,86602.0,86601.0,0.40223984]
[1742885628747,0.13870491,86602.0,86601.0,0.5178101]